Cogmind - Beta 15 @@@ ROGUE MODE // 2025.08.07 @ 19:28:43 Player: Zoe Result: Destroyed by as-78245 with Assembled Maul Performance ------------- Evolutions (0) 0 Regions Visited (2) 400 Robots Destroyed (7) 35 Value Destroyed (48) 48 Prototype IDs (0) 0 Alien Tech Used (0) 0 Bonus (0) 0 TOTAL SCORE: 483 Bonus ------- None Cogmind --------- Core Integrity 0/250 Matter 246/300 Energy 100/100 System Corruption 0% Temperature Cool (0) Movement Walking (190) Ox1 Location -10/Mines Parts ------- > --- POWER (1) -------- (None) > --- PROPULSION (2) --- Aluminum Leg > --- UTILITY (2) ------ Large Storage Unit > --- WEAPON (2) ------- (None) > --- INVENTORY (15) --- Light Treads Sensor Array Signal Interpreter Signal Interpreter Improved Terrain Scanner Light Assault Rifle Peak State ------------ > --- POWER ------------ Light Ion Engine > --- PROPULSION ------- Light Treads Light Treads > --- UTILITY ---------- Small Storage Unit Improved Terrain Scanner > --- WEAPON ----------- Assault Rifle Light Assault Rifle > --- INVENTORY -------- Light Ion Engine Aluminum Leg Aluminum Leg Light Assault Rifle [Rating: 9] Favorites ----------- Power Light Ion Engine Engine Light Ion Engine Propulsion Light Treads Treads Light Treads Leg Aluminum Leg Utility Improved Terrain Scanner Device Improved Terrain Scanner Storage Large Storage Unit Weapon Assault Rifle Ballistic Gun Assault Rifle Special Weapon Mining Laser Build | -11 -10 -10 ------- Run | Yrd Mat Min Slots Evolved . | . . . Power . | . . . Propulsion . | . . . Utility . | . . . Weapon . | . . . Parts Attached 14 | 8 2 4 Power 2 | 1 . 1 Engine 2 | 1 . 1 Core . | . . . Reactor . | . . . Propulsion 4 | 2 . 2 Treads 2 | 2 . . Leg 2 | . . 2 Wheel . | . . . Hover . | . . . Flight . | . . . Utility 4 | 2 1 1 Device 2 | 1 . 1 Storage 2 | 1 1 . Processor . | . . . Hackware . | . . . Protection . | . . . Artifact . | . . . Weapon 4 | 3 1 . Energy Gun . | . . . Energy Cannon . | . . . Ballistic Gun 3 | 3 . . Ballistic Cannon . | . . . Launcher . | . . . Special Weapon 1 | . 1 . Impact Weapon . | . . . Slashing Weapon . | . . . Piercing Weapon . | . . . Special Melee Weapon . | . . . Unidentified Prototypes . | . . . Parts Lost 8 | . . 8 Power 2 | . . 2 Propulsion 2 | . . 2 Utility 1 | . . 1 Weapon 3 | . . 3 Highest Loss Streak 8 | . . 8 To Critical Strikes . | . . . Average Backups 6 | 4 8 8 Power . | . 1 . Propulsion 1 | 1 2 1 Utility 2 | . 3 4 Weapon 1 | 1 2 1 Tool/Special . | . . . Unused Backups 3 | . . 3 Power . | . . . Propulsion . | . . . Utility 3 | . . 3 Weapon . | . . . Tool/Special . | . . . Average Slot Usage (%) 97 | . 100 95 Engine 13 | . 14 13 Treads 26 | . 28 24 Leg 1 | . . 3 Device 13 | . 14 12 Storage 14 | . 14 14 Ballistic Gun 25 | . 26 24 Special Weapon 1 | . 1 1 Peak Build Rating 9 | 9 9 9 Average Rating 7 | 7 9 8 On Entrance 6 | . 9 9 Naked Turns . | . . . Heaviest Build 27 | 12 27 27 Greatest Support 40 | 40 40 40 Greatest Overweight (x) 2 | . . 2 Average Overweight (x) . | . . . Largest Inventory Capacity 15 | 8 15 15 Average Capacity 11 | 7 14 15 Most Carried 9 | 6 9 9 Average Carried 6 | 4 8 8 Final Capacity 15 | 8 15 15 Final Carried 9 | 6 9 6 Class Distribution -------------------- 100% | Mutant Dominant Class ---------------- Mutant | -10/Materials Mutant | -10/Mines Resources | -11 -10 -10 ----------- Run | Yrd Mat Min Matter Collected 380 | 380 . . Remotely . | . . . Salvage Created 214 | 214 . . Parts 20 | 20 . . Haulers Intercepted . | . . . Recyclers Shooed . | . . . Parts Field Recycled . | . . . Retrieved Matter . | . . . Parts Self-Destructed . | . . . Prevented . | . . . Kills | -11 -10 -10 ------- Run | Yrd Mat Min Combat Hostiles Destroyed . | . . . Classes Destroyed 2 | 2 . . Tunneler 6 | 6 . . Recycler 1 | 1 . . Best Kill Streak 2 | 2 . . Combat Bots Only . | . . . Max Kills in Single Turn 1 | 1 . . Gunslinging . | . . . Exploded . | . . . Melee . | . . . Uniques/NPCs Destroyed . | . . . Combat | -11 -10 -10 -------- Run | Yrd Mat Min Hostile Shots Fired 82 | . . 82 Missed 19 | . . 19 Hits 63 | . . 63 Melee 15 | . . 15 Projectile 48 | . . 48 Critical Strikes 1 | . . 1 Part Disruptions 2 | . . 2 Damage Taken 1071 | . . 1071 Core 274 | . . 274 Absorbed by Shields . | . . . Core Remaining (%) 100 | 100 . . Volleys Fired 31 | 25 2 4 Largest 2 | 2 2 1 Hottest 100 | 40 100 100 Shots Fired 57 | 50 3 4 Gun 52 | 50 2 . Cannon . | . . . Launcher . | . . . Special 5 | . 1 4 Kinetic 52 | 50 2 . Thermal 5 | . 1 4 Explosive . | . . . Electromagnetic . | . . . Robot Hit Streak 13 | 13 4 . Robot Miss Streak 3 | 3 1 . Penetration Max . | . . . Secondary Targets . | . . . Shots Hit Robots 34 | 33 1 . Core Hits 10 | 10 . . Critical Kills . | . . . Critical Parts Destroyed 1 | 1 . . Critical Strikes 1 | 1 . . Destroy 1 | 1 . . Melee Attacks . | . . . Impact . | . . . Slashing . | . . . Piercing . | . . . Sneak Attacks . | . . . Combat Hostiles . | . . . Follow-up Attacks . | . . . Damage Inflicted 348 | 336 12 . Guns 348 | 336 12 . Cannons . | . . . Explosions . | . . . Melee . | . . . Ramming . | . . . Kinetic 348 | 336 12 . Thermal . | . . . Explosive . | . . . Electromagnetic . | . . . Impact . | . . . Slashing . | . . . Piercing . | . . . Highest Corruption . | . . . Average Corruption . | . . . Corruption Purged . | . . . Corruption Blocked . | . . . Overload Shots . | . . . Overflow Damage . | . . . Projectiles . | . . . Explosions . | . . . Melee . | . . . Knockbacks . | . . . Impact . | . . . Kinetic . | . . . Secondary . | . . . Self-Inflicted Damage . | . . . Shots . | . . . Rammed . | . . . Targets Rammed . | . . . Kicked . | . . . Crushed . | . . . Highest Temperature 66 | . 20 66 Average Temperature 24 | . 10 26 Received Heat Transfer 220 | . . 220 Siege Activations . | . . . Martial Activations . | . . . Shielding Activations . | . . . Robots Disrupted . | . . . Combat Hostiles . | . . . Robots Corrupted . | . . . Combat Hostiles . | . . . Parts Fried . | . . . Impact Corruptions . | . . . Robots Melted . | . . . Combat Hostiles . | . . . Parts Melted . | . . . Heat Transferred . | . . . Parts Sabotaged . | . . . Parts Stolen . | . . . Parts Stripped . | . . . Power Chain Reactions . | . . . Alert | -11 -10 -10 ------- Run | Yrd Mat Min Maximum Alert Level . | . . . Low Security (%) 100 | 100 100 100 Level 1 . | . . . Level 2 . | . . . Level 3 . | . . . Level 4 . | . . . Level 5 . | . . . High Security . | . . . Max Security . | . . . Peak Influence 5 | 5 1 1 Initial . | . . . Average . | 1 . . Influence Increases 38 | 35 1 2 Destroy 0b10 Robot/NC 35 | 35 . . Destroy Structure 3 | . 1 2 Influence Decreases 38 | 35 1 2 Time Decay 37 | 35 1 1 Lost Part 1 | . . 1 Squads Dispatched 1 | . 1 . Investigation . | . . . Extermination . | . . . Reinforcement 1 | . 1 . Assault . | . . . Garrison . | . . . Intercept . | . . . Searches Triggered . | . . . Construction Impeded . | . . . Haulers Reinforced . | . . . Active Scanning Responses . | . . . Cargo Convoy Interrupts . | . . . Stealth | -11 -10 -10 --------- Run | Yrd Mat Min Distress Signals . | . . . Communications Jammed . | . . . Distress Signals . | . . . Times Spotted 11 | . 2 9 Peak Tracking Total 9 | . 2 9 Tactical Retreats 1 | . . 1 Traps | -11 -10 -10 ------- Run | Yrd Mat Min Traps Triggered . | . . . Indirectly . | . . . Trap Hack Attempts . | . . . Triggered . | . . . Disarmed . | . . . Reprogrammed . | . . . Reused . | . . . Traps Extracted . | . . . Installed . | . . . Triggered . | . . . Machines | -11 -10 -10 ---------- Run | Yrd Mat Min Machines Disabled . | . . . Max in Single Turn . | . . . Machines Repaired . | . . . Machines Dismantled . | . . . Machines Sabotaged . | . . . Overloaded Fab Kills . | . . . Hacking | -11 -10 -10 --------- Run | Yrd Mat Min Machines Accessed 3 | . 3 . Terminals 2 | . 2 . Fabricators . | . . . Repair Stations . | . . . Recycling Units 1 | . 1 . Scanalyzers . | . . . Garrison Access . | . . . Total Hacks 10 | . 10 . Successful 4 | . 4 . Failed 5 | . 5 . Catastrophic . | . . . Database Lockouts 1 | . 1 . Manual 10 | . 10 . Terminals 9 | . 9 . Fabricators . | . . . Repair Stations . | . . . Recycling Units 1 | . 1 . Scanalyzers . | . . . Garrison Access . | . . . Terminal Hacks 1 | . 1 . Robot Analysis 1 | . 1 . Fabricator Hacks . | . . . Repair Station Hacks . | . . . Recycling Unit Hacks . | . . . Scanalyzer . | . . . Garrison Access Hacks . | . . . Unauthorized Hacks 3 | . 3 . Terminals 2 | . 2 . Botnet 2 | . 2 . Fabricators . | . . . Repair Stations . | . . . Recycling Units 1 | . 1 . Reject 1 | . 1 . Scanalyzers . | . . . Garrison Access . | . . . Data Cores Recovered . | . . . Used . | . . . Hacking Detections 1 | . 1 . Full Trace Events 1 | . 1 . Feedback Events . | . . . Feedback Blocked . | . . . Robot Schematics Acquired . | . . . Robots Built . | . . . Authchips . | . . . Time . | . . . Total Robot Build Rating . | . . . Part Schematics Acquired . | . . . Parts Built . | . . . Authchips . | . . . Time . | . . . Total Part Build Rating . | . . . Parts Repaired . | . . . Time . | . . . Parts Recycled . | . . . Recycled Matter . | . . . Retrieved Matter . | . . . Retrieved Components . | . . . Parts Scanalyzed . | . . . Part Schematics Acquired . | . . . Parts Damaged . | . . . Bothacking | -11 -10 -10 ------------ Run | Yrd Mat Min Used RIF Installer . | . . . Robots Hacked . | . . . Non-combat . | . . . Combat . | . . . Robot Hacks Applied . | . . . Relay Couplers Released . | . . . Fabnet Peak Effective % . | . . . Robots Rewired . | . . . Allies Hacked . | . . . Hacks Repelled . | . . . Allies | -11 -10 -10 -------- Run | Yrd Mat Min Total Allies . | . . . Largest Group . | . . . Highest-Rated Group . | . . . Highest-Rated Ally . | . . . Total Orders . | . . . Ally Attacks . | . . . Total Damage . | . . . Kills . | . . . Allies Corrupted . | . . . Allies Melted . | . . . Intel | -11 -10 -10 ------- Run | Yrd Mat Min Active Infowar (turns) 481 | 162 165 154 Terrain 425 | 162 165 98 Seismic 56 | . . 56 Robot Analysis Total 1 | . 1 . Derelict Logs Recovered . | . . . Drone Launches . | . . . Drone Recoveries . | . . . Exploration | -11 -10 -10 ------------- Run | Yrd Mat Min Turns Passed 615 | 274 165 176 Spaces Moved 303 | 119 95 89 Core 6 | 6 . . Treads 289 | 113 95 81 Legs 8 | . . 8 Wheels . | . . . Hover . | . . . Flight . | . . . Fastest Speed 50 | 50 160 160 Average Speed 160 | 154 160 170 Slowest Speed 260 | 160 160 260 Overloaded Moves . | . . . Propulsion Burnouts . | . . . Robots Hopped . | . . . Potential Cave-ins 2 | . . 2 Cave-ins Triggered . | . . . Exploration Rate (%) 23 | 7 30 32 Regions Visited 2 Branch Regions 1 Pre-discovered Areas . | . . . Known Exits Taken . | . . . Unknown Exits Taken 2 | 1 1 . Scrap Searched . | . . . Spaces Dug 5 | . 1 4 Terrain Destroyed 5 | . 1 4 Melee . | . . . Projectile 5 | . 1 4 AOE . | . . . Terrain Rammed . | . . . Walls Destroyed . | . . . Machines Disabled . | . . . Actions | -11 -10 -10 --------- Run | Yrd Mat Min Total 366 | 163 103 100 Wait . | . . . Move 301 | 118 94 89 Hop . | . . . Pick Up 16 | 12 4 . Fast Attach 1 | 1 . . Attach 9 | 6 . 3 Detach . | . . . Swap 7 | 1 2 4 Drop 1 | . 1 . Fire 31 | 25 2 4 Melee . | . . . Ram . | . . . Kick . | . . . Crush . | . . . Escape Stasis . | . . . Rewire . | . . . Trap . | . . . Miscellaneous . | . . . Route ------- -11/Scrapyard -10/Materials -10/Mines History --------- Turn | Location | Event 6 | -11/Scrapyard | Discovered new exit (range 15) 275 | -11/Scrapyard | Entered Materials 312 | -10/Materials | Build established: Mutant 401 | -10/Materials | Discovered new exit (range 16) 409 | -10/Materials | Central database locked down 440 | -10/Materials | Entered Mines 534 | -10/Mines | Assembled infested the area 602 | -10/Mines | Core integrity fell below 50% 614 | -10/Mines | Core integrity fell below 20% 616 | -10/Mines | Destroyed by as-78245 with Assembled Maul Last Messages --------------- escorts to protect those with more valuable cargo. 00409_ ALERT: Central database lockdown, local access denied. 00410_ K-01 Serf collects debris. LOCATION=UNKNOWN GOAL=ESCAPE 00534_ ALERT: Infestation in the mines, dispatching Demolisher response squad. 00554_ T-07 Excavator destroyed. 00573_ Mining Laser destroyed. 00586_ Lgt. Treads destroyed. 00591_ Lgt. Ion Engine destroyed. 00595_ Seismic Detector destroyed. 00599_ Assault Rifle destroyed. 00608_ Lgt. Ion Engine destroyed. 00612_ Lgt. Assault Rifle destroyed. 00612_ Aluminum Leg destroyed. 00614_ as-75622 suffers critical hit (Destroy). 00614_ as-75622 destroyed. Map ----- +----------------------------------------------------+ | | | | | | | | | | | | | | | | | | | | | | | | | ????????????????????????????????????????????? | | ????????????????????????????????????????????? | | ?????????????????????????????????????????#### | | ????????????????????????????????????????## | | ????????????????????????????????#???????# | | ????????????????????????????????????????# | | ????????????????????????????????????????# | | ????????????????????????????????????????## | | ???????##??????????????????????????????#??# | | ???????? ##?????????????????????????????# | | ??????????? #######???????????????????## | | ?????????????# ###????????????????## | | ??????????????? a ##?????????????#### | | ??????????????????#a@ #??????#?????## | | ??????????????????# a #????????????# | | ??????????????????# a ##????#?????#?# # | | ??????????????????# % #????????????## ! ## | | ??????????????????##aa##???????????# =%##? | | ???????????????????# a #????#??????# #?? | | ???????????????????## #???????????# ##? | | ????????????????????# ##??????????# ## | | ???????????????# #### #####?????## # | | ???????????????# ##??###" # | | ???????????????###### #### # # | | ????????????????????# #"### ## | | ???????????????????# ##?# ##? | | ???????????????????# #??## #?? | | ???????????????????# ### #???## #?? | | ???????????????????# ??## #???# ##? | | ???????????????????# ???# #??# #?? | | ??????????????????? ???# ## ####?? | | ??????????????????####???# ##????? | | ?????????????????????????# ??????? | | ?????????????????????????## #??#???? | | ??????????????????????????#### ##???????? | | ?????????????????????????????## ##????????? | | ??????????????????????????????# ###?????????? | | ?????????????????????????????? #???????????? | +----------------------------------------------------+ Best States ------------- Heat Dissipation 25 Energy Generation 10 Energy Capacity 125 Matter Stores 300 Matter Capacity 300 Sight Range 16 Terrain Scan Range 16 Terrain Scan Density 10 Evasion (%) 40 Recoil Reduction 2 Item Schematics ----------------- None Robot Schematics ------------------ None Fabricated ------------ Nothing Repaired ---------- Nothing Alien Tech Used ----------------- None Achievements -------------- None Challenges ------------ None Game ------ Seed DynamicStorageTendrils Manual? 0 Play Time 00:06:59 Cumulative 34.1 hours Start 2025.08.07 @ 19:23:20 End 2025.08.07 @ 19:28:43 Sessions 1 Manual Loads 0 Difficulty Rogue Special Mode None Game No. 69 Rogue 66 Adventurer 3 Explorer 0 Win Type - Total 0 Types 0/0/0/0/0/0/0/0/0/0 Lore% 26 Gallery% 25 Achievement% 26 Wizard Run 0 Options --------- Layout 1 ASCII 0 Keyboard 0 Movement Mouse Keybinds 0 Fullscreen 1 Font 24/Smallcaps Map View 50x35 Zoom Use 0% Tactical HUD 1 Map Filters NONE Filters NONE Steam 1 RUN: bc10ab3f-2790-4fa3-aa8b-97e4fe3c071c